[Event "Austrian Women Bundesliga 2023-24"]
[Site "Austria"]
[Date "2024.03.23"]
[Round "5.5"]
[White "Berke, Ana"]
[Black "Polterauer, Chiara"]
[Result "1/2-1/2"]
[ECO "A45"]
[WhiteElo "2066"]
[BlackElo "2194"]
[Annotator "RC"]
[PlyCount "74"]
[EventDate "2023.11.21"]
[EventType "team-tourn"]
[EventCountry "AUT"]
[SourceTitle "playchess.com"]
[Source "ChessBase"]
[SourceQuality "1"]
[TimeControl "40/5400+30:1800+30"]

1. d4 {[%emt 0:00:05]} Nf6 {[%emt 0:00:04]} 2. Bf4 {[%emt 0:00:10]} g6 {[%emt 0:00:13]} 3. Nc3 {[%emt 0:00:29]} d5 {[%emt 0:00:16]} 4. e3 {[%emt 0:00:22]} Bg7 {[%emt 0:00:15]} 5. h4 {[%emt 0:00:27]} h5 {[%emt 0:01:24]} 6. Be2 {[%emt 0:01:55]} Bf5 {[%emt 0:03:10]} 7. Nf3 {[%emt 0:01:19]} O-O {[%emt 0:05:56]} 8. Ne5 {[%emt 0:00:50]} c5 {[%emt 0:01:48]} 9. Nb5 {[%emt 0:04:30]} a6 {[%emt 0:05:16]} 10. Na3 {[%emt 0:01:47]} cxd4 {[%emt 0:05:42]} 11. exd4 {[%emt 0:10:32]} Qb6 {[%emt 0:02:46]} 12. Bc1 {[%emt 0:04:50]} Ne4 {[%emt 0:08:36]} 13. O-O {[%emt 0:09:37]} Nc6 {[%emt 0:03:32]} 14. Nxc6 {[%emt 0:01:41]} bxc6 {[%emt 0:00:12]} 15. c3 {[%emt 0:01:34]} Bf6 {[%emt 0:01:36]} 16. Nc2 {[%emt 0:02:47]} Bxh4 {[%emt 0:05:23]} 17. Ne3 {[%emt 0:09:45]} Bd7 {[%emt 0:02:39]} 18. Bxh5 {[%emt 0:11:32]} Kg7 {[%emt 0:01:38]} 19. Bg4 {[%emt 0:03:01]} f5 {[%emt 0:02:26]} 20. Bf3 {[%emt 0:06:51]} Qc7 {[%emt 0:01:22]} 21. Bxe4 {[%emt 0:01:12]} dxe4 {[%emt 0:00:34]} 22. Nc4 {[%emt 0:01:24]} Bf6 {[%emt 0:03:05]} 23. f4 {[%emt 0:00:39]} c5 {[%emt 0:04:43]} 24. Ne5 {[%emt 0:01:09]} cxd4 {[%emt 0:01:58]} 25. cxd4 {[%emt 0:00:14]} Bb5 {[%emt 0:01:25]} 26. Rf2 {[%emt 0:01:17]} Rac8 {[%emt 0:05:33]} 27. Be3 {[%emt 0:02:47]} Bxe5 {[%emt 0:00:25]} 28. fxe5 {[%emt 0:00:29]} Qc4 {[%emt 0:01:18]} 29. Qd2 {[%emt 0:04:22]} Rh8 {[%emt 0:05:40]} 30. d5 {[%emt 0:01:33]} Rhd8 {[%emt 0:10:10]} 31. d6 {[%emt 0:02:29]} Qd3 {[%emt 0:05:47]} 32. Bh6+ {[%emt 0:04:06]} Kh7 {[%emt 0:00:33]} 33. Qg5 {[%emt 0:03:36]} exd6 {[%emt 0:04:37]} 34. Qe7+ {[%emt 0:05:14]} Kxh6 {[%emt 0:00:23]} 35. Qh4+ {[%emt 0:01:02]} Kg7 {[%emt 0:00:11]} 36. Qe7+ {[%emt 0:00:36]} Kh6 {[%emt 0:02:29]} 37. Qh4+ {[%emt 0:00:05]} Kg7 {[%emt 0:00:10]} 1/2-1/2

[Event "Austrian Women Bundesliga 2023-24"]
[Site "Austria"]
[Date "2024.03.23"]
[Round "5.6"]
[White "Schloffer, Jasmin-Denise"]
[Black "Kopinits, Anna-Christina"]
[Result "1/2-1/2"]
[ECO "D14"]
[WhiteElo "2167"]
[BlackElo "2170"]
[Annotator "RC"]
[PlyCount "117"]
[EventDate "2023.11.21"]
[EventType "team-tourn"]
[EventCountry "AUT"]
[SourceTitle "playchess.com"]
[Source "ChessBase"]
[SourceQuality "1"]
[TimeControl "40/5400+30:1800+30"]

1. d4 {[%emt 0:00:03]} d5 {[%emt 0:00:06]} 2. c4 {[%emt 0:00:04]} c6 {[%emt 0:00:06]} 3. cxd5 {[%emt 0:00:06]} cxd5 {[%emt 0:00:05]} 4. Nc3 {[%emt 0:00:04]} Nc6 {[%emt 0:00:14]} 5. Nf3 {[%emt 0:00:23]} Nf6 {[%emt 0:00:14]} 6. Bf4 {[%emt 0:00:07]} Bf5 {[%emt 0:01:44]} 7. Qb3 {[%emt 0:00:07]} Na5 {[%emt 0:00:31]} 8. Qa4+ {[%emt 0:00:06]} Bd7 {[%emt 0:00:09]} 9. Qc2 {[%emt 0:00:05]} e6 {[%emt 0:00:42]} 10. e3 {[%emt 0:00:26]} Nh5 {[%emt 0:01:22]} 11. Be5 {[%emt 0:07:55]} f6 {[%emt 0:02:09]} 12. Bg3 {[%emt 0:00:14]} Nxg3 {[%emt 0:04:15]} 13. hxg3 {[%emt 0:00:44]} f5 {[%emt 0:00:42]} 14. Ne5 {[%emt 0:04:33]} Bd6 {[%emt 0:09:43]} 15. Ng6 {[%emt 0:07:52]} Rg8 {[%emt 0:00:27]} 16. Rxh7 {[%emt 0:00:25]} Qf6 {[%emt 0:03:54]} 17. Be2 {[%emt 0:04:45]} Rc8 {[%emt 0:02:58]} 18. f4 {[%emt 0:14:37]} Nc4 {[%emt 0:04:49]} 19. Kf2 {[%emt 0:01:28]} Qd8 {[%emt 0:10:39]} 20. Bh5 {[%emt 0:09:09]} Qa5 {[%emt 0:15:34]} 21. Ne5+ {[%emt 0:09:00]} Ke7 {[%emt 0:01:31]} 22. Nxd7 {[%emt 0:01:34]} Kxd7 {[%emt 0:00:12]} 23. Bf7 {[%emt 0:06:35]} Rh8 {[%emt 0:00:16]} 24. Rxg7 {[%emt 0:01:43]} Bf8 {[%emt 0:14:34]} 25. Rg6 {[%emt 0:03:16]} Rc6 {[%emt 0:02:07]} 26. Bxe6+ {[%emt 0:03:02]} Rxe6 {[%emt 0:00:07]} 27. Qxf5 {[%emt 0:00:05]} Qb6 {[%emt 0:00:55]} 28. b3 {[%emt 0:01:36]} Nxe3 {[%emt 0:02:07]} 29. Rxe6 {[%emt 0:12:35]} Nxf5 {[%emt 0:00:33]} 30. Rxb6 {[%emt 0:00:05]} axb6 {[%emt 0:00:04]} 31. Nxd5 {[%emt 0:00:12]} Kc6 {[%emt 0:04:19]} 32. Ne3 {[%emt 0:02:25]} Nxd4 {[%emt 0:01:12]} 33. Rc1+ {[%emt 0:00:42]} Kb5 {[%emt 0:00:16]} 34. Rc4 {[%emt 0:02:05]} Bg7 {[%emt 0:01:21]} 35. Nd5 {[%emt 0:01:15]} Ne6 {[%emt 0:04:16]} 36. a4+ {[%emt 0:04:49]} Ka5 {[%emt 0:00:56]} 37. f5 {[%emt 0:01:06]} Rf8 {[%emt 0:01:34]} 38. g4 {[%emt 0:01:37]} Nd4 {[%emt 0:01:08]} 39. Rc7 {[%emt 0:01:11]} Rd8 {[%emt 0:04:26]} 40. Rxb7 {[%emt 0:01:09]} Rxd5 {[%emt 0:00:28]} 41. Rxg7 {[%emt 0:30:04]} Nxb3 {[%emt 0:35:02]} 42. f6 {[%emt 0:00:00]} Nc5 {[%emt 0:00:00]} 43. Re7 {[%emt 0:00:00]} Nd7 {[%emt 0:00:00]} 44. f7 {[%emt 0:00:00]} Nf8 {[%emt 0:00:00]} 45. Re8 {[%emt 0:00:00]} Ng6 {[%emt 0:00:00]} 46. f8=Q {[%emt 0:00:00]} Nxf8 {[%emt 0:00:00]} 47. Rxf8 {[%emt 0:00:00]} Kxa4 {[%emt 0:00:00]} 48. Rf5 {[%emt 0:00:00]} Rd8 {[%emt 0:00:00]} 49. Rf6 {[%emt 0:00:00]} b5 {[%emt 0:00:00]} 50. Ra6+ {[%emt 0:00:00]} Kb3 {[%emt 0:00:00]} 51. Rb6 {[%emt 0:00:00]} Kc4 {[%emt 0:00:00]} 52. Kf3 {[%emt 0:00:37]} Kc5 {[%emt 0:00:00]} 53. Rb7 {[%emt 0:00:44]} Kc6 {[%emt 0:00:00]} 54. Re7 {[%emt 0:00:27]} b4 {[%emt 0:00:00]} 55. Re3 {[%emt 0:01:02]} Rb8 {[%emt 0:00:00]} 56. Rb3 {[%emt 0:01:02]} Kd5 {[%emt 0:00:00]} 57. Kf4 {[%emt 0:00:16]} Ke6 {[%emt 0:00:00]} 58. g5 {[%emt 0:00:36]} Kf7 {[%emt 0:00:00]} 59. Ke4 {[%emt 0:03:14]} 1/2-1/2

[Event "Austrian Women Bundesliga 2023-24"]
[Site "Austria"]
[Date "2024.03.23"]
[Round "5.7"]
[White "Kushka, Alena"]
[Black "Konecny, Sophie"]
[Result "1-0"]
[ECO "E42"]
[WhiteElo "2146"]
[BlackElo "1907"]
[Annotator "NA RC"]
[PlyCount "59"]
[EventDate "2023.11.21"]
[EventType "team-tourn"]
[EventCountry "AUT"]
[SourceTitle "playchess.com"]
[Source "ChessBase"]
[SourceQuality "1"]
[TimeControl "40/5400+30:1800+30"]

1. d4 {[%emt 0:00:05]} Nf6 {[%emt 0:00:06]} 2. c4 {[%emt 0:00:06]} e6 {[%emt 0:00:04]} 3. Nc3 {[%emt 0:00:06]} Bb4 {[%emt 0:00:04]} 4. e3 {[%emt 0:01:55]} c5 {[%emt 0:00:22]} 5. Nge2 {[%emt 0:03:20]} Ne4 {[%emt 0:03:53]} 6. a3 {[%emt 0:02:11]} Bxc3+ {[%emt 0:04:27]} 7. Nxc3 {[%emt 0:00:08]} Nxc3 {[%emt 0:01:21]} 8. bxc3 {[%emt 0:00:04]} Qa5 {[%emt 0:02:58]} 9. Bd2 {[%emt 0:03:24]} O-O {[%emt 0:06:40]} 10. Bd3 {[%emt 0:02:47]} f5 {[%emt 0:04:14]} 11. O-O {[%emt 0:06:39]} Qc7 {[%emt 0:03:10]} 12. e4 {[%emt 0:03:21]} Nc6 {[%emt 0:04:59]} 13. exf5 {[%emt 0:01:08]} exf5 {[%emt 0:01:18]} 14. Qh5 {[%emt 0:07:08]} d6 {[%emt 0:04:45]} 15. Rae1 {[%emt 0:12:41]} Qf7 {[%emt 0:05:45]} 16. Qh4 {[%emt 0:03:44]} Bd7 {[%emt 0:08:50]} 17. Bf4 {[%emt 0:04:40]} Qf6 {[%emt 0:03:50]} 18. Qxf6 {[%emt 0:01:10]} Rxf6 {[%emt 0:00:07]} 19. d5 {[%emt 0:00:24]} Nd8 {[%emt 0:01:38]} 20. Re7 {[%emt 0:01:42]} Ba4 {[%emt 0:01:43]} 21. Rfe1 {[%emt 0:07:46]} b6 {[%emt 0:06:58]} 22. h4 {[%emt 0:01:32]} h6 {[%emt 0:05:24]} 23. Rc7 {[%emt 0:02:08]} Nf7 {[%emt 0:05:05]} 24. Re6 {[%emt 0:02:42]} Rxe6 {[%emt 0:03:49]} 25. dxe6 {[%emt 0:00:11]} Ne5 {[%emt 0:00:15]} 26. Bxe5 {[%emt 0:01:30]} dxe5 {[%emt 0:00:05]} 27. Bxf5 {[%emt 0:00:57]} Bb3 {[%emt 0:01:47]} 28. Be4 {[%emt 0:00:48]} Re8 {[%emt 0:01:26]} 29. Bc6 {[%emt 0:01:22]} Rd8 {[%emt 0:02:56]} 30. e7 {[%emt 0:00:16]} 1-0

[Event "Austrian Women Bundesliga 2023-24"]
[Site "Austria"]
[Date "2024.03.23"]
[Round "5.8"]
[White "Heinrich, Vanessa"]
[Black "Kejzar, Petra"]
[Result "1/2-1/2"]
[ECO "A13"]
[WhiteElo "1773"]
[BlackElo "2049"]
[Annotator "NA RC"]
[PlyCount "69"]
[EventDate "2023.11.21"]
[EventType "team-tourn"]
[EventCountry "AUT"]
[SourceTitle "playchess.com"]
[Source "ChessBase"]
[SourceQuality "1"]
[TimeControl "40/5400+30:1800+30"]

1. Nf3 {[%emt 0:00:02]} d5 {[%emt 0:00:10]} 2. c4 {[%emt 0:01:38]} e6 {[%emt 0:00:29]} 3. g3 {[%emt 0:01:10]} Nf6 {[%emt 0:00:17]} 4. b3 {[%emt 0:01:29]} Be7 {[%emt 0:00:49]} 5. Bg2 {[%emt 0:00:16]} O-O {[%emt 0:00:58]} 6. O-O {[%emt 0:00:17]} a5 {[%emt 0:04:49]} 7. Bb2 {[%emt 0:08:23]} Nc6 {[%emt 0:06:14]} 8. Na3 {[%emt 0:07:46]} d4 {[%emt 0:01:16]} 9. d3 {[%emt 0:07:06]} e5 {[%emt 0:02:22]} 10. Nc2 {[%emt 0:04:18]} Nd7 {[%emt 0:13:19]} 11. e3 {[%emt 0:05:45]} dxe3 {[%emt 0:14:11]} 12. fxe3 {[%emt 0:05:33]} e4 {[%emt 0:06:04]} 13. dxe4 {[%emt 0:11:30]} Nc5 {[%emt 0:00:36]} 14. Nfd4 {[%emt 0:05:05]} Ne5 {[%emt 0:06:15]} 15. Nf5 {[%emt 0:07:46]} Bd6 {[%emt 0:10:23]} 16. Qh5 {[%emt 0:08:09]} Ncd3 {[%emt 0:03:48]} 17. Nxd6 {[%emt 0:02:12]} cxd6 {[%emt 0:02:02]} 18. Bxe5 {[%emt 0:00:37]} Nxe5 {[%emt 0:00:23]} 19. h3 {[%emt 0:03:52]} a4 {[%emt 0:01:57]} 20. Nd4 {[%emt 0:02:24]} Qb6 {[%emt 0:00:57]} 21. Qe2 {[%emt 0:03:33]} Bd7 {[%emt 0:02:42]} 22. Rfd1 {[%emt 0:01:10]} Rfd8 {[%emt 0:03:24]} 23. Nb5 {[%emt 0:03:03]} Bxb5 {[%emt 0:01:42]} 24. cxb5 {[%emt 0:00:06]} h6 {[%emt 0:02:49]} 25. Kh2 {[%emt 0:00:41]} Ra5 {[%emt 0:00:17]} 26. bxa4 {[%emt 0:00:20]} Rxa4 {[%emt 0:00:21]} 27. Rd5 {[%emt 0:02:09]} Ra3 {[%emt 0:00:49]} 28. Rad1 {[%emt 0:03:13]} Rxe3 {[%emt 0:04:07]} 29. Qf2 {[%emt 0:01:05]} Nc4 {[%emt 0:02:42]} 30. Bf1 {[%emt 0:00:41]} Ra3 {[%emt 0:07:05]} 31. Qxb6 {[%emt 0:00:47]} Nxb6 {[%emt 0:00:01]} 32. Rxd6 {[%emt 0:00:18]} Rxa2+ {[%emt 0:00:06]} 33. Kg1 {[%emt 0:00:58]} Rxd6 {[%emt 0:00:19]} 34. Rxd6 {[%emt 0:00:19]} Na4 {[%emt 0:00:16]} 35. Bc4 {[%emt 0:01:00]} 1/2-1/2

[Event "Austrian Women Bundesliga 2023-24"]
[Site "Austria"]
[Date "2024.03.23"]
[Round "5.9"]
[White "Katter, Katharina"]
[Black "Terbe, Julianna"]
[Result "0-1"]
[ECO "A40"]
[WhiteElo "1932"]
[BlackElo "2289"]
[Annotator "RC"]
[PlyCount "80"]
[EventDate "2023.11.21"]
[EventType "team-tourn"]
[EventCountry "AUT"]
[SourceTitle "playchess.com"]
[Source "ChessBase"]
[SourceQuality "1"]
[TimeControl "40/5400+30:1800+30"]

1. d4 {[%emt 0:00:05]} g6 {[%emt 0:00:06]} 2. Nf3 {[%emt 0:00:39]} Bg7 {[%emt 0:00:06]} 3. g3 {[%emt 0:01:26]} d6 {[%emt 0:00:05]} 4. Bg2 {[%emt 0:00:53]} e5 {[%emt 0:01:08]} 5. e4 {[%emt 0:01:44]} Nc6 {[%emt 0:03:21]} 6. Be3 {[%emt 0:03:19]} Nf6 {[%emt 0:07:25]} 7. dxe5 {[%emt 0:12:37]} Nxe5 {[%emt 0:03:32]} 8. Nxe5 {[%emt 0:02:21]} dxe5 {[%emt 0:00:04]} 9. Qxd8+ {[%emt 0:02:05]} Kxd8 {[%emt 0:00:01]} 10. h3 {[%emt 0:00:38]} c6 {[%emt 0:03:10]} 11. Nc3 {[%emt 0:03:00]} Kc7 {[%emt 0:02:04]} 12. O-O-O {[%emt 0:02:20]} Be6 {[%emt 0:01:03]} 13. a3 {[%emt 0:05:43]} Nd7 {[%emt 0:04:07]} 14. h4 {[%emt 0:10:55]} h5 {[%emt 0:06:16]} 15. Bh3 {[%emt 0:01:16]} Bxh3 {[%emt 0:00:27]} 16. Rxh3 {[%emt 0:00:09]} Bh6 {[%emt 0:00:26]} 17. Bxh6 {[%emt 0:04:00]} Rxh6 {[%emt 0:00:02]} 18. f3 {[%emt 0:02:55]} Nc5 {[%emt 0:05:05]} 19. Rh2 {[%emt 0:05:36]} Rd8 {[%emt 0:00:47]} 20. Rhd2 {[%emt 0:11:48]} Rxd2 {[%emt 0:00:06]} 21. Kxd2 {[%emt 0:01:27]} f6 {[%emt 0:10:20]} 22. Ke3 {[%emt 0:02:02]} g5 {[%emt 0:00:08]} 23. Rh1 {[%emt 0:02:33]} Ne6 {[%emt 0:00:54]} 24. Ne2 {[%emt 0:00:25]} Rh8 {[%emt 0:01:12]} 25. f4 {[%emt 0:03:26]} gxf4+ {[%emt 0:11:15]} 26. gxf4 {[%emt 0:00:22]} Rg8 {[%emt 0:00:19]} 27. f5 {[%emt 0:03:33]} Nf4 {[%emt 0:00:23]} 28. Rg1 {[%emt 0:07:03]} Rxg1 {[%emt 0:02:31]} 29. Nxg1 {[%emt 0:00:02]} Kb6 {[%emt 0:00:15]} 30. Ne2 {[%emt 0:01:32]} Nxe2 {[%emt 0:01:02]} 31. Kxe2 {[%emt 0:00:02]} Kb5 {[%emt 0:11:09]} 32. Kd3 {[%emt 0:00:07]} Ka4 {[%emt 0:04:08]} 33. Kc4 {[%emt 0:00:45]} b6 {[%emt 0:00:06]} 34. Kd3 {[%emt 0:03:56]} b5 {[%emt 0:00:11]} 35. Kc3 {[%emt 0:00:59]} c5 {[%emt 0:01:47]} 36. Kd3 {[%emt 0:01:40]} c4+ {[%emt 0:01:39]} 37. Kc3 {[%emt 0:01:04]} a5 {[%emt 0:01:05]} 38. Kd2 {[%emt 0:00:23]} b4 {[%emt 0:00:27]} 39. axb4 {[%emt 0:01:11]} Kxb4 {[%emt 0:00:55]} 40. Kd1 {[%emt 0:03:55]} a4 {[%emt 0:03:38]} 0-1

[Event "Austrian Women Bundesliga 2023-24"]
[Site "Austria"]
[Date "2024.03.23"]
[Round "5.10"]
[White "Terbe, Zsuzsanna"]
[Black "Batyte, Daiva"]
[Result "1/2-1/2"]
[ECO "D35"]
[WhiteElo "2178"]
[BlackElo "2046"]
[Annotator "RC"]
[PlyCount "68"]
[EventDate "2023.11.21"]
[EventType "team-tourn"]
[EventCountry "AUT"]
[SourceTitle "playchess.com"]
[Source "ChessBase"]
[SourceQuality "1"]
[TimeControl "40/5400+30:1800+30"]

1. d4 {[%emt 0:00:03]} d5 {[%emt 0:00:16]} 2. c4 {[%emt 0:00:14]} e6 {[%emt 0:00:19]} 3. Nc3 {[%emt 0:00:10]} Nf6 {[%emt 0:00:19]} 4. cxd5 {[%emt 0:00:41]} exd5 {[%emt 0:00:06]} 5. Bg5 {[%emt 0:00:04]} Be7 {[%emt 0:00:39]} 6. e3 {[%emt 0:00:12]} c6 {[%emt 0:01:22]} 7. Bd3 {[%emt 0:00:12]} h6 {[%emt 0:05:03]} 8. Bh4 {[%emt 0:00:39]} Nbd7 {[%emt 0:00:37]} 9. Qc2 {[%emt 0:00:24]} b6 {[%emt 0:02:39]} 10. Nf3 {[%emt 0:05:33]} Bb7 {[%emt 0:01:39]} 11. O-O {[%emt 0:00:48]} O-O {[%emt 0:01:19]} 12. h3 {[%emt 0:09:13]} c5 {[%emt 0:02:02]} 13. dxc5 {[%emt 0:11:09]} bxc5 {[%emt 0:02:09]} 14. Be2 {[%emt 0:07:03]} Rc8 {[%emt 0:04:14]} 15. Rfd1 {[%emt 0:00:35]} Re8 {[%emt 0:04:09]} 16. Rac1 {[%emt 0:07:30]} Qb6 {[%emt 0:04:03]} 17. Qb1 {[%emt 0:06:32]} Qe6 {[%emt 0:02:57]} 18. Bg3 {[%emt 0:02:29]} Bd6 {[%emt 0:19:22]} 19. Bxd6 {[%emt 0:01:33]} Qxd6 {[%emt 0:00:11]} 20. Qd3 {[%emt 0:06:42]} Ne5 {[%emt 0:04:24]} 21. Nxe5 {[%emt 0:02:39]} Rxe5 {[%emt 0:01:18]} 22. Bf3 {[%emt 0:00:36]} Qe7 {[%emt 0:05:23]} 23. Rc2 {[%emt 0:06:06]} Rb8 {[%emt 0:02:48]} 24. Na4 {[%emt 0:04:27]} d4 {[%emt 0:03:42]} 25. Bxb7 {[%emt 0:05:57]} Rxb7 {[%emt 0:11:53]} 26. exd4 {[%emt 0:00:39]} cxd4 {[%emt 0:02:00]} 27. Rc8+ {[%emt 0:02:29]} Ne8 {[%emt 0:00:19]} 28. b3 {[%emt 0:05:25]} Rd7 {[%emt 0:02:12]} 29. Kf1 {[%emt 0:05:08]} g6 {[%emt 0:01:07]} 30. Rc4 {[%emt 0:01:10]} Nf6 {[%emt 0:00:45]} 31. g3 {[%emt 0:02:56]} Qe6 {[%emt 0:03:37]} 32. Kg2 {[%emt 0:00:43]} Rh5 {[%emt 0:00:43]} 33. h4 {[%emt 0:02:10]} Rf5 {[%emt 0:00:47]} 34. Rd2 {[%emt 0:03:09]} Qd5+ {[%emt 0:06:15]} 1/2-1/2

[Event "Austrian Women Bundesliga 2023-24"]
[Site "Austria"]
[Date "2024.03.23"]
[Round "5.11"]
[White "Katter, Marlene"]
[Black "Karacsonyi, Kata"]
[Result "0-1"]
[ECO "A46"]
[WhiteElo "1902"]
[BlackElo "2137"]
[Annotator "NA RC"]
[PlyCount "61"]
[EventDate "2023.11.21"]
[EventType "team-tourn"]
[EventCountry "AUT"]
[SourceTitle "playchess.com"]
[Source "ChessBase"]
[SourceQuality "1"]
[TimeControl "40/5400+30:1800+30"]

1. d4 {[%emt 0:00:03]} Nf6 {[%emt 0:00:09]} 2. Nf3 {[%emt 0:00:14]} e6 {[%emt 0:00:26]} 3. Bf4 {[%emt 0:00:28]} d5 {[%emt 0:00:15]} 4. e3 {[%emt 0:00:30]} Bd6 {[%emt 0:00:22]} 5. Bg3 {[%emt 0:00:43]} O-O {[%emt 0:00:31]} 6. Nbd2 {[%emt 0:00:48]} c5 {[%emt 0:00:35]} 7. c3 {[%emt 0:00:35]} Qc7 {[%emt 0:00:32]} 8. Bd3 {[%emt 0:03:31]} Nbd7 {[%emt 0:04:39]} 9. O-O {[%emt 0:02:29]} e5 {[%emt 0:08:04]} 10. dxe5 {[%emt 0:01:42]} Nxe5 {[%emt 0:00:09]} 11. Nxe5 {[%emt 0:02:16]} Bxe5 {[%emt 0:00:07]} 12. Bxe5 {[%emt 0:02:17]} Qxe5 {[%emt 0:00:07]} 13. Nf3 {[%emt 0:04:43]} Qe7 {[%emt 0:07:29]} 14. h3 {[%emt 0:08:26]} Ne4 {[%emt 0:09:58]} 15. Qe2 {[%emt 0:05:50]} Be6 {[%emt 0:10:43]} 16. Rfd1 {[%emt 0:11:18]} Rad8 {[%emt 0:02:50]} 17. Qc2 {[%emt 0:12:53]} f5 {[%emt 0:11:42]} 18. c4 {[%emt 0:18:26]} Kh8 {[%emt 0:05:41]} 19. Rac1 {[%emt 0:08:12]} Qf6 {[%emt 0:04:02]} 20. Nd2 {[%emt 0:03:42]} b6 {[%emt 0:11:53]} 21. cxd5 {[%emt 0:04:09]} Bxd5 {[%emt 0:00:34]} 22. b3 {[%emt 0:03:05]} Ng5 {[%emt 0:04:48]} 23. f3 {[%emt 0:02:58]} Qe5 {[%emt 0:06:52]} 24. Nf1 {[%emt 0:01:57]} f4 {[%emt 0:01:56]} 25. e4 {[%emt 0:00:35]} Be6 {[%emt 0:00:07]} 26. Bc4 {[%emt 0:00:51]} Bxh3 {[%emt 0:03:48]} 27. gxh3 {[%emt 0:00:38]} Nxf3+ {[%emt 0:00:06]} 28. Kf2 {[%emt 0:00:22]} Ng5 {[%emt 0:01:46]} 29. Bd5 {[%emt 0:00:36]} Nxh3+ {[%emt 0:00:17]} 30. Kg2 {[%emt 0:00:36]} Qg5+ {[%emt 0:01:49]} 31. Kxh3 {[%emt 0:00:17]} 0-1

[Event "Austrian Women Bundesliga 2023-24"]
[Site "Austria"]
[Date "2024.03.23"]
[Round "5.12"]
[White "Exler, Veronika"]
[Black "Landl, Margot"]
[Result "1-0"]
[ECO "C55"]
[WhiteElo "2157"]
[BlackElo "1962"]
[Annotator "RC"]
[PlyCount "109"]
[EventDate "2023.11.21"]
[EventType "team-tourn"]
[EventCountry "AUT"]
[SourceTitle "playchess.com"]
[Source "ChessBase"]
[SourceQuality "1"]
[TimeControl "40/5400+30:1800+30"]

1. e4 {[%emt 0:00:01]} e5 {[%emt 0:00:13]} 2. Nf3 {[%emt 0:00:04]} Nc6 {[%emt 0:00:05]} 3. d4 {[%emt 0:00:03]} exd4 {[%emt 0:00:06]} 4. Bc4 {[%emt 0:00:04]} Nf6 {[%emt 0:00:23]} 5. e5 {[%emt 0:00:08]} d5 {[%emt 0:00:20]} 6. Bb5 {[%emt 0:00:06]} Ne4 7. Nxd4 {[%emt 0:00:15]} Bd7 {[%emt 0:00:44]} 8. Bxc6 {[%emt 0:00:23]} bxc6 {[%emt 0:00:24]} 9. O-O {[%emt 0:00:16]} Bc5 {[%emt 0:01:40]} 10. f3 {[%emt 0:00:31]} Ng5 {[%emt 0:00:37]} 11. f4 {[%emt 0:00:05]} Ne4 {[%emt 0:00:59]} 12. Be3 {[%emt 0:00:07]} Bb6 {[%emt 0:08:17]} 13. Nd2 {[%emt 0:00:15]} Nxd2 {[%emt 0:02:05]} 14. Qxd2 {[%emt 0:00:06]} O-O {[%emt 0:01:48]} 15. Nb3 {[%emt 0:05:32]} Qe7 {[%emt 0:09:25]} 16. Qc3 {[%emt 0:02:55]} Bxe3+ {[%emt 0:21:05]} 17. Qxe3 {[%emt 0:00:07]} f6 {[%emt 0:06:30]} 18. Qc5 {[%emt 1:02:07]} Rae8 {[%emt 0:14:38]} 19. Rae1 {[%emt 0:04:18]} fxe5 {[%emt 0:04:23]} 20. Qxe7 {[%emt 0:05:53]} Rxe7 {[%emt 0:00:08]} 21. Rxe5 {[%emt 0:00:02]} Rxe5 {[%emt 0:08:29]} 22. fxe5 {[%emt 0:00:01]} Re8 {[%emt 0:04:04]} 23. Nc5 {[%emt 0:01:13]} Bc8 {[%emt 0:00:32]} 24. Re1 {[%emt 0:01:57]} Kf8 {[%emt 0:02:01]} 25. Kf2 {[%emt 0:01:03]} Ke7 {[%emt 0:01:13]} 26. Re3 {[%emt 0:07:45]} Kd8 {[%emt 0:06:09]} 27. Ke1 {[%emt 0:04:29]} Bf5 {[%emt 0:03:33]} 28. Kd2 {[%emt 0:00:03]} g6 {[%emt 0:01:11]} 29. h3 {[%emt 0:00:24]} h5 {[%emt 0:00:39]} 30. b4 {[%emt 0:02:36]} d4 {[%emt 0:01:49]} 31. Re2 {[%emt 0:01:43]} Ke7 {[%emt 0:00:26]} 32. c3 {[%emt 0:01:17]} dxc3+ {[%emt 0:00:53]} 33. Kxc3 {[%emt 0:00:01]} a5 {[%emt 0:01:34]} 34. bxa5 {[%emt 0:00:18]} Ra8 {[%emt 0:00:09]} 35. a6 {[%emt 0:01:02]} Bc8 {[%emt 0:00:30]} 36. Re4 {[%emt 0:00:38]} Be6 {[%emt 0:00:32]} 37. Ra4 {[%emt 0:00:33]} Bd5 {[%emt 0:00:46]} 38. g3 {[%emt 0:00:11]} g5 {[%emt 0:00:16]} 39. Kd4 {[%emt 0:00:44]} Bg2 {[%emt 0:00:37]} 40. h4 {[%emt 0:00:18]} gxh4 {[%emt 0:00:17]} 41. gxh4 {[%emt 0:30:05]} Bf1 {[%emt 0:03:22]} 42. Ra3 {[%emt 0:00:00]} Be2 {[%emt 0:02:03]} 43. Rg3 {[%emt 0:00:00]} Bg4 {[%emt 0:00:38]} 44. Rb3 {[%emt 0:00:00]} Bc8 {[%emt 0:04:48]} 45. Ke3 {[%emt 0:00:00]} Kd8 {[%emt 0:05:42]} 46. Rb4 {[%emt 0:00:00]} Ke7 {[%emt 0:00:31]} 47. Rf4 {[%emt 0:00:00]} Ra7 {[%emt 0:10:48]} 48. Kd2 {[%emt 0:00:00]} Be6 {[%emt 0:01:24]} 49. Rb4 {[%emt 0:00:00]} Ra8 {[%emt 0:01:01]} 50. Rb7 {[%emt 0:00:00]} Bd5 {[%emt 0:01:10]} 51. Rxc7+ {[%emt 0:00:05]} Kf8 {[%emt 0:01:01]} 52. Rb7 {[%emt 0:01:56]} Bf7 {[%emt 0:01:02]} 53. a7 {[%emt 0:02:03]} Be8 {[%emt 0:00:05]} 54. Ne6+ {[%emt 0:01:24]} Kg8 {[%emt 0:00:06]} 55. Nc7 {[%emt 0:00:19]} 1-0